[Event "Hungarian Championship Men 2022"]
[Site "Budapest"]
[Date "2022.12.06"]
[Round "2.1"]
[White "Kozak, Adam"]
[Black "Prohaszka, Peter"]
[Result "1/2-1/2"]
[ECO "C28"]
[WhiteElo "2538"]
[BlackElo "2562"]
[Annotator "TA"]
[PlyCount "194"]
[EventDate "2022.12.03"]
[EventType "tourn"]
[EventCountry "HUN"]
[SourceTitle "playchess.com"]
[Source "ChessBase"]
[SourceQuality "1"]
[TimeControl "40/5400+30:1800+30"]

{[%evp 62,193,176,170,178,161,130,138,174,175,170,163,167,143,168,0,166,0,164,122,131,131,139,143,147,146,148,139,242,80,80,80,81,83,86,86,204,202,185,190,158,151,143,221,301,256,396,400,401,368,387,378,465,406,406,377,369,356,289,264,236,0,0,0,0,0,9,31,31,31,31,31,31,0,0,0,0,0,0,0,0,0,0,0,0,0,0,0,0,0,0,0,0,0,0,0,0,0,0,0,0,0,0,0,0,0,0,0,0,0,0,0,0,0,0,0,0,0,0,0,0,0,0,0,0,0,0,0,0,0,0,0,0,0]} 1. e4 {[%emt 0:00:32]} e5 {[%emt 0:00:34]} 2. Nc3 {[%emt 0:02:06]} Nf6 {[%emt 0:00:38]} 3. Bc4 {[%emt 0:00:11]} Nc6 {[%emt 0:09:55]} 4. d3 {[%emt 0:00:42]} Na5 {[%emt 0:02:25]} 5. Nge2 {[%emt 0:00:58]} Nxc4 {[%emt 0:04:32]} 6. dxc4 {[%emt 0:00:03]} Bc5 {[%emt 0:00:20]} 7. O-O {[%emt 0:02:29]} d6 {[%emt 0:01:06]} 8. Qd3 {[%emt 0:02:38]} Be6 {[%emt 0:02:31]} 9. Ng3 {[%emt 0:13:09]} g6 {[%emt 0:23:27]} 10. b3 {[%emt 0:16:26]} a6 {[%emt 0:01:47]} 11. Bd2 {[%emt 0:10:35]} Nd7 {[%emt 0:16:36]} 12. Kh1 {[%emt 0:03:00]} h5 {[%emt 0:10:57]} 13. f4 {[%emt 0:01:55]} exf4 {[%emt 0:00:45]} 14. Bxf4 {[%emt 0:02:07]} Ne5 {[%emt 0:00:53]} 15. Qd2 {[%emt 0:07:08]} h4 {[%emt 0:01:07]} 16. Nf5 {[%emt 0:12:35]} gxf5 {[%emt 0:04:05]} 17. exf5 {[%emt 0:00:02]} Bxf5 {[%emt 0:00:39]} 18. Nd5 {[%emt 0:08:32]} Be4 {[%emt 0:13:33]} 19. Rae1 {[%emt 0:04:33]} Bxd5 {[%emt 0:00:47]} 20. Qxd5 {[%emt 0:00:13]} f6 {[%emt 0:00:41]} 21. Bxe5 {[%emt 0:02:20]} dxe5 {[%emt 0:00:06]} 22. Qxc5 {[%emt 0:00:09]} Qe7 {[%emt 0:01:35]} 23. Qd5 {[%emt 0:01:09]} c6 {[%emt 0:00:32]} 24. Qd3 {[%emt 0:00:29]} Rg8 {[%emt 0:00:22]} 25. Qh3 {[%emt 0:01:27]} Rg5 {[%emt 0:02:18]} 26. Re4 {[%emt 0:01:13]} Kd8 {[%emt 0:00:45]} 27. Rxh4 {[%emt 0:03:01]} Kc7 {[%emt 0:00:01]} 28. Rh7 {[%emt 0:00:26]} Rg7 {[%emt 0:00:02]} 29. Rxg7 {[%emt 0:00:34]} Qxg7 {[%emt 0:00:01]} 30. Qf5 {[%emt 0:01:06]} Rd8 {[%emt 0:01:02]} 31. g3 {[%emt 0:00:13]} Rf8 {[%emt 0:01:18]} 32. Kg2 {[%emt 0:01:40]} Qd7 {[%emt 0:00:16]} 33. Qxd7+ {[%emt 0:01:10]} Kxd7 {[%emt 0:00:01]} 34. g4 {[%emt 0:00:18]} Ke6 {[%emt 0:00:29]} 35. h4 {[%emt 0:01:59]} Rd8 {[%emt 0:00:19]} 36. h5 {[%emt 0:00:43]} Rd2+ {[%emt 0:01:16]} 37. Rf2 {[%emt 0:00:02]} Rd1 {[%emt 0:00:08]} 38. Rf1 {[%emt 0:00:54]} Rd2+ $1 {[%emt 0:00:35]} 39. Rf2 {[%emt 0:00:01]} Rd1 $1 {[%emt 0:00:02]} 40. Kf3 {[%emt 0:00:00]} Rh1 {[%emt 0:00:00]} 41. Kg3 {[%emt 0:04:01]} Rd1 {[%emt 0:11:39]} 42. a4 {[%emt 0:10:22]} a5 {[%emt 0:01:42]} 43. Rh2 {[%emt 0:01:29]} Kf7 {[%emt 0:02:17]} 44. Kf3 {[%emt 0:02:31]} Kg7 {[%emt 0:04:21]} (44... Rg1 $16 45. Rd2 Ke8) 45. Rf2 $2 {[%emt 0:00:34]} (45. h6+ $18 Kh7 46. g5 fxg5 47. Kg4) 45... Rd4 $16 {[%emt 0:02:22]} 46. Kg3 {[%emt 0:00:35]} Rd1 {[%emt 0:00:07]} 47. Kg2 {[%emt 0:02:10]} Rd4 {[%emt 0:00:42]} 48. Kf3 {[%emt 0:01:04]} Kh6 {[%emt 0:03:29]} (48... Kf7 $16) 49. Kg3 $18 {[%emt 0:00:18]} Kg7 {[%emt 0:00:21]} 50. Rf3 $1 {[%emt 0:01:35]} Rd1 {[%emt 0:04:44]} 51. Rd3 $1 {[%emt 0:01:07]} Rg1+ {[%emt 0:00:02]} 52. Kf3 {[%emt 0:01:02]} Rf1+ {[%emt 0:01:45]} 53. Kg2 {[%emt 0:01:58]} Rc1 {[%emt 0:00:06]} (53... Rf4 {is a better defense.} 54. Rd7+ Kh6) 54. Rd7+ $18 {[%emt 0:04:57]} Kh6 {[%emt 0:00:01]} 55. Rxb7 {[%emt 0:00:40]} Rxc2+ {[%emt 0:03:32]} 56. Kg3 {[%emt 0:00:02]} f5 {[%emt 0:00:20]} 57. gxf5 {[%emt 0:01:02]} Kxh5 {[%emt 0:00:35] [#]} 58. Re7 $1 {[%emt 0:04:43]} Rc3+ {[%emt 0:00:37]} 59. Kf2 {[%emt 0:00:01]} Rxb3 {[%emt 0:01:13]} 60. Rxe5 {[%emt 0:00:02]} Rb4 {[%emt 0:01:04] [#]} 61. Rxa5 $2 {[%emt 0:00:30]} (61. Rc5 $1 $18) 61... Rxc4 $11 62. Ke3 {[%emt 0:00:59]} (62. Ra8 $5 {[%cal Ra4a5]} Rf4+ 63. Ke3 Rxf5 64. a5 $18) 62... Kg5 {[%emt 0:01:11]} 63. Kd3 {[%emt 0:00:01]} Rb4 {[%emt 0:00:50]} 64. Kc3 $1 {[%emt 0:01:27]} c5 {[%emt 0:00:32]} 65. Ra8 {[%emt 0:00:28]} Kxf5 {[%emt 0:00:10]} 66. a5 $1 {[%emt 0:00:08]} Kg6 {[%emt 0:00:40]} 67. Ra6+ {[%emt 0:00:53]} Kf7 {[%emt 0:00:39]} 68. Rc6 {[%emt 0:00:31]} Ra4 {[%emt 0:00:25]} 69. Rxc5 {[%emt 0:00:15]} Ke6 {[%emt 0:00:22]} 70. Kb3 {[%emt 0:00:02]} Ra1 {[%emt 0:00:05]} 71. Kb4 {[%emt 0:00:27]} Kd6 {[%emt 0:00:38]} 72. Rc4 $1 {[%emt 0:00:06]} Rb1+ {[%emt 0:00:42]} 73. Ka4 {[%emt 0:00:05]} (73. Ka3 $5 {[%cal Ra3a4]}) 73... Ra1+ {[%emt 0:00:32]} 74. Kb5 {[%emt 0:00:07]} Rb1+ {[%emt 0:00:05]} 75. Ka6 {[%emt 0:00:16]} (75. Ka4 $5 {[%cal Ra5a6]}) 75... Kd7 {[%emt 0:00:05]} 76. Ka7 {[%emt 0:00:04]} Ra1 {[%emt 0:00:24]} 77. a6 {[%emt 0:02:21]} (77. Rc5 $5) 77... Rb1 {[%emt 0:00:07]} 78. Rc5 {[%emt 0:00:05]} Rb2 {[%emt 0:00:09]} 79. Rh5 {[%emt 0:00:23]} Kc7 {[%emt 0:00:20]} 80. Rh7+ {[%emt 0:00:05]} Kc8 {[%emt 0:00:47]} 81. Rb7 {[%emt 0:00:26]} Ra2 {[%emt 0:00:54]} 82. Rb5 {[%emt 0:00:42]} Kc7 {[%emt 0:01:16]} 83. Rc5+ {[%emt 0:00:02]} Kd7 {[%emt 0:00:15]} (83... Kd6 $2 84. Rc1 $18) 84. Rb5 {[%emt 0:02:24]} Kc7 {[%emt 0:00:10]} 85. Rb3 {[%emt 0:00:24]} Ra1 {[%emt 0:00:59]} 86. Rc3+ {[%emt 0:00:18]} Kd7 {[%emt 0:00:12]} 87. Rh3 {[%emt 0:00:15]} Rb1 {[%emt 0:00:31]} 88. Rg3 {[%emt 0:00:22]} Kc7 {[%emt 0:00:29]} 89. Rg7+ {[%emt 0:00:54]} Kc8 {[%emt 0:00:07]} 90. Rg6 {[%emt 0:00:13]} Kc7 {[%emt 0:00:28]} 91. Rf6 {[%emt 0:00:07]} (91. Rg7+ Kc6) 91... Rb2 {[%emt 0:00:16]} 92. Rf7+ {[%emt 0:00:24]} (92. Rf1 $5 {[%cal Rf1c1]}) 92... Kc8 {[%emt 0:00:07]} 93. Rf8+ {[%emt 0:00:14]} Kc7 {[%emt 0:00:01]} 94. Ka8 {[%emt 0:00:17]} ({But not} 94. Rf7+ $6 Kd6 $14) 94... Rb1 {[%emt 0:01:35]} 95. a7 {[%emt 0:00:51]} Rc1 {[%emt 0:00:28]} 96. Rb8 {[%emt 0:00:32]} Rc2 {[%emt 0:00:29]} 97. Rc8+ {[%emt 0:00:16]} Kxc8 {[%emt 0:00:06]} 1/2-1/2

[Event "Hungarian Championship Men 2022"]
[Site "Budapest"]
[Date "2022.12.06"]
[Round "2.2"]
[White "Horvath, Csaba"]
[Black "Grigoriants, Sergey"]
[Result "1/2-1/2"]
[ECO "E04"]
[WhiteElo "2502"]
[BlackElo "2550"]
[Annotator "TA"]
[PlyCount "63"]
[EventDate "2022.12.03"]
[EventType "tourn"]
[EventCountry "HUN"]
[SourceTitle "playchess.com"]
[Source "ChessBase"]
[SourceQuality "1"]
[TimeControl "40/5400+30:1800+30"]

{[%evp 11,63,10,22,21,23,16,18,16,47,55,50,53,46,48,49,20,20,25,23,18,18,18,18,0,0,0,0,0,0,0,0,0,0,0,7,0,6,6,6,9,7,6,8,6,8,4,6,0,0,0,0,0,0,0]} 1. Nf3 {[%emt 0:11:44]} d5 {[%emt 0:01:11]} 2. d4 {[%emt 0:00:42]} Nf6 {[%emt 0:00:49]} 3. c4 {[%emt 0:00:29]} e6 {[%emt 0:00:23]} 4. g3 {[%emt 0:00:50]} dxc4 {[%emt 0:01:55]} 5. Bg2 {[%emt 0:00:22]} Bb4+ {[%emt 0:00:34]} 6. Bd2 {[%emt 0:00:07]} a5 {[%emt 0:00:24]} 7. Qc2 {[%emt 0:03:16] E04: Open Catalan: 5 Nf3.} Bxd2+ {[%emt 0:02:17]} 8. Qxd2 {[%emt 0:02:07]} c6 {[%emt 0:01:09]} 9. a4 {[%emt 0:03:48]} b5 {[%emt 0:03:54]} 10. axb5 {[%emt 0:02:07]} cxb5 {[%emt 0:00:12]} 11. Qg5 {[%emt 0:00:18][%csl LRb5,LRg7]} O-O {[%emt 0:00:43]} 12. Qxb5 {[%emt 0:00:14]} Ba6 {[%emt 0:00:15]} 13. Qxa5 {[%emt 0:03:53]} (13. Rxa5 $2 Bxb5 14. Rxa8 Bc6 $19) (13. Qa4 {simplifies} Qb6 14. O-O Qxb2 15. Nbd2) 13... Bb7 $1 {[%emt 0:01:08]} 14. Qxd8 {[%emt 0:00:14]} Rxa1 {[%emt 0:00:20][%mdl 64] [#]} (14... Rxd8 15. Rxa8 Bxa8 16. e3 $16) 15. Qxf8+ {[%emt 0:01:52]} Kxf8 {[%emt 0:00:06] The position is equal.} 16. O-O {[%emt 0:00:45] And now Ne5 would win.} Ra2 {[%emt 0:03:44]} 17. Nbd2 {[%emt 0:23:59]} Bxf3 {[%emt 0:00:49]} ({Don't play} 17... Rxb2 18. Nxc4 Rb4 19. Rc1 $16) 18. Nxf3 {[%emt 0:00:18]} Rxb2 {[%emt 0:00:55][%cal Oc4c3] ...c3! is the strong threat.} 19. Rc1 {[%emt 0:01:20] Against c3} Rxe2 {[%emt 0:04:10]} 20. Rxc4 {[%emt 0:00:24] [#] Black must now prevent Rc8+.} Nbd7 {[%emt 0:01:58]} 21. Rc7 {[%emt 0:01:23] [#]} Ra2 $146 {[%emt 0:05:04]} ({Predecessor:} 21... Ke7 22. Kf1 Ra2 23. Ne5 Ra1+ 24. Ke2 Ra2+ 25. Kf1 Ra1+ 26. Ke2 Ra2+ 27. Kf1 {½-½ (27) Johannsson,B (2165)-Guz,A (2305) Cala Gonone 2022}) 22. Bf1 {[%emt 0:06:48]} Ke7 {[%emt 0:08:32]} 23. Ne5 {[%emt 0:08:57] Threatens to win with Rb7.} Kd8 {[%emt 0:02:41]} 24. Rb7 {[%emt 0:00:54] aiming for Nxd7.} Nxe5 {[%emt 0:05:52]} 25. dxe5 $11 {[%emt 0:00:08][%mdl 4096] Endgame KRB-KRN} Nd7 {[%emt 0:00:08]} 26. f4 {[%emt 0:02:06]} Kc8 {[%emt 0:10:20]} 27. Rb3 {[%emt 0:00:49]} Kd8 {[%emt 0:06:32]} 28. Bb5 {[%emt 0:05:22]} Ke7 {[%emt 0:01:06]} 29. Bxd7 {[%emt 0:02:31]} Kxd7 {[%emt 0:00:11]} 30. Rb7+ {[%emt 0:00:05]} Ke8 {[%emt 0:00:04]} 31. Rb8+ {[%emt 0:00:11]} Ke7 {[%emt 0:00:05]} 32. Rb7+ {[%emt 0:00:05] Weighted Error Value: White=0.03 (flawless) /Black=0.02 (flawless)} 1/2-1/2

[Event "Hungarian Championship Men 2022"]
[Site "Budapest"]
[Date "2022.12.06"]
[Round "2.3"]
[White "Horvath, Adam"]
[Black "Korpa, Bence"]
[Result "0-1"]
[ECO "B03"]
[WhiteElo "2501"]
[BlackElo "2500"]
[Annotator "TA"]
[PlyCount "112"]
[EventDate "2022.12.03"]
[EventType "tourn"]
[EventCountry "HUN"]
[SourceTitle "playchess.com"]
[Source "ChessBase"]
[SourceQuality "1"]
[TimeControl "40/5400+30:1800+30"]

{[%evp 20,112,32,10,26,-31,-36,-13,33,9,10,0,0,-34,-19,-29,-28,-34,-25,-21,-29,-47,-52,-56,-31,-66,-41,-60,-49,-40,-30,-43,-39,-41,-45,-34,-37,-85,-85,-85,-81,-101,-99,-99,-106,-97,-102,-179,-186,-222,-193,-195,-200,-264,-239,-275,-274,-391,-314,-316,-308,-315,-308,-374,-374,-374,-374,-368,-366,-355,-238,-212,-205,-314,-285,-352,-337,-352,-305,-412,-424,-1424,-1327,-29975,-29978,-29976,-29979,-29979,-29980,-29980,-29981,-29984,-29985,-29985,-29986]} 1. e4 {[%emt 0:00:34][%cal Be2e4,Be4e5][%mdl 32]} Nf6 {[%emt 0:00:45]} 2. e5 {[%emt 0:00:42]} Nd5 {[%emt 0:00:07]} 3. d4 {[%emt 0:00:04]} d6 {[%emt 0:00:06]} 4. c4 {[%emt 0:00:04]} Nb6 {[%emt 0:00:05]} 5. exd6 {[%emt 0:00:03]} cxd6 {[%emt 0:00:10]} 6. Nc3 {[%emt 0:13:34]} g6 {[%emt 0:00:13]} 7. Nf3 {[%emt 0:06:41]} Bg7 {[%emt 0:01:19]} 8. h3 {[%emt 0:00:03]} O-O {[%emt 0:02:21]} 9. Be2 {[%emt 0:00:29]} Nc6 {[%emt 0:00:50]} 10. O-O {[%emt 0:00:45]} Bf5 {[%emt 0:00:20]} 11. b3 {[%emt 0:23:42]} (11. Bf4 {with more complications.} e5 12. Bg5 Qd7 13. dxe5 dxe5 14. c5) 11... d5 $1 {[%emt 0:15:29] B04: Alekhine's Defence: 4 Nf3.} 12. c5 {[%emt 0:00:03]} (12. Be3 $11) 12... Nd7 $15 {[%emt 0:00:30]} 13. Bb2 {[%emt 0:07:49]} b6 {[%emt 0:07:02]} (13... Be4 $11) 14. cxb6 {[%emt 0:02:29]} Nxb6 {[%emt 0:00:10]} 15. Qd2 {[%emt 0:07:51] [#]} Be4 $146 {[%emt 0:11:19]} ({Predecessor:} 15... Qd7 16. Bb5 Qb7 17. Rfe1 Bd7 18. Rac1 e6 19. Ba3 Rfe8 20. Qf4 Nd8 21. Bf1 h6 {0-1 (32) Barnes,C-Kaufman,L Atlantic City 1972}) 16. Nb5 {[%emt 0:03:58]} a6 {[%emt 0:06:07][%cal Oe4f3]} 17. Na3 {[%emt 0:00:05]} Bxf3 {[%emt 0:00:44]} (17... Nd7 {feels hotter.} 18. Ng5 Bh6 19. Nb1 Bxb1 20. Raxb1 e5) 18. Bxf3 {[%emt 0:00:09]} e6 {[%emt 0:00:08]} 19. Rac1 {[%emt 0:01:37]} Qd6 {[%emt 0:03:57]} 20. Nc2 {[%emt 0:00:12] Against Qb4} Rfc8 {[%emt 0:00:20]} 21. g3 {[%emt 0:04:56]} h5 {[%emt 0:03:59]} 22. h4 {[%emt 0:00:20]} Ne7 {[%emt 0:07:07] Black is more active.} 23. Ne3 {[%emt 0:04:32]} Nd7 {[%emt 0:01:26][%cal Bb6d7,Bd7b8,Bb8c6][%mdl 32]} 24. Rxc8+ {[%emt 0:00:42]} Rxc8 {[%emt 0:02:53]} 25. Rc1 {[%emt 0:00:05]} Rxc1+ {[%emt 0:10:59]} 26. Qxc1 {[%emt 0:00:29]} Qb6 {[%emt 0:01:08]} 27. Be2 {[%emt 0:16:52]} a5 {[%emt 0:05:05]} (27... Bxd4 28. Bxd4 Qxd4 29. Qc7 $16) 28. Qc3 {[%emt 0:02:06]} (28. Nc2 $15 {feels stronger.}) 28... Nb8 $17 {[%emt 0:01:35] White is on the road to losing.} 29. g4 {[%emt 0:03:17]} Nbc6 {[%emt 0:07:02][%cal Rg7d4]} 30. Nc2 {[%emt 0:00:03]} hxg4 {[%emt 0:01:06]} 31. Bxg4 {[%emt 0:00:03]} Nb4 {[%emt 0:01:59]} 32. Nxb4 {[%emt 0:00:19]} axb4 {[%emt 0:00:06]} 33. Qe3 {[%emt 0:00:13]} (33. Qd2 $17) 33... Qa7 {[%emt 0:01:57]} 34. h5 {[%emt 0:01:20]} gxh5 {[%emt 0:00:35]} 35. Bxh5 {[%emt 0:00:24]} Qxa2 {[%emt 0:03:35]} 36. Qf4 {[%emt 0:00:57] [#]} Qb1+ $1 {[%emt 0:02:23]} (36... Qxb2 37. Bxf7+ Kh7 38. Qh4+ Bh6 39. Qxe7 Qb1+ 40. Kg2 $11) 37. Bc1 {[%emt 0:00:20]} Ng6 {[%emt 0:01:49]} (37... Qxb3 38. Bxf7+ Kf8 39. Bxe6+) 38. Qb8+ {[%emt 0:00:33]} (38. Bxg6 {might work better.} Qxg6+ 39. Kh2) 38... Kh7 {[%emt 0:00:13]} 39. Qc7 {[%emt 0:00:24]} Qf5 {[%emt 0:01:23]} (39... Qxb3 $2 40. Kh2 $19 (40. Qxf7 $2 Qc2 $19)) 40. Qh2 {[%emt 0:00:00] Hoping for Bg4+.} Kg8 {[%emt 0:00:00]} (40... Bxd4 41. Bxg6+ Kg8 42. Bxf5 exf5 43. Qg3+ Kf8 44. Qb8+ Kg7 45. Qg3+ Kf8 46. Qd6+ Kg8 47. Qg3+ Kf8) 41. Be3 {[%emt 0:03:52]} Qb1+ {[%emt 0:09:38]} 42. Kg2 {[%emt 0:00:05] [#]} Bxd4 $1 {[%emt 0:03:11][%mdl 512]} 43. Bxd4 {[%emt 0:19:43]} ({Much weaker is} 43. Qb8+ Kh7 44. Bxd4 Qe4+ 45. Kg1 Qxd4 $19) 43... Qe4+ {[%emt 0:00:15]} (43... Qxb3 {leads to mate.} 44. Bxg6) 44. Kf1 {[%emt 0:00:03] Bxg6 would kill now.} Qxd4 {[%emt 0:00:19]} 45. Bxg6 {[%emt 0:00:03]} fxg6 $19 {[%emt 0:03:29][%mdl 4096] Endgame KQ-KQ} 46. Qd6 {[%emt 0:01:20]} (46. Qc7 {was the only chance.}) 46... Kf7 {[%emt 0:00:50]} 47. f4 {[%emt 0:00:30]} Qf6 {[%emt 0:09:33] Threatens to win with ...g5.} 48. Ke2 {[%emt 0:03:11]} Qe7 {[%emt 0:00:40]} ({Don't blunder} 48... Qb2+ $2 49. Ke1 $19) 49. Qb8 {[%emt 0:00:36]} Qc5 {[%emt 0:02:09]} 50. Kf3 {[%emt 0:01:20]} (50. Kd3 $142) 50... d4 {[%emt 0:00:06] aiming for ...d3.} 51. Ke4 {[%emt 0:00:54] Inhibits d3.} Qc3 {[%emt 0:02:04][%csl Gd4][%cal Rc3e3] Black mates.} 52. Qa7+ {[%emt 0:02:00]} Kf6 {[%emt 0:00:05][%csl Gd4][%cal Rc3e3]} 53. Qxd4+ {[%emt 0:00:03]} Qxd4+ {[%emt 0:00:05]} 54. Kxd4 {[%emt 0:00:03]} Kf5 {[%emt 0:00:10]} 55. Kc4 {[%emt 0:00:03]} Kxf4 {[%emt 0:00:21]} 56. Kxb4 {[%emt 0:00:03]} g5 {[%emt 0:00:37] Weighted Error Value: White=0.57/Black=0.05 (flawless)} 0-1

[Event "Hungarian Championship Men 2022"]
[Site "Budapest"]
[Date "2022.12.06"]
[Round "2.4"]
[White "Nagy, Gabor"]
[Black "Papp, Gabor"]
[Result "1/2-1/2"]
[ECO "A05"]
[WhiteElo "2482"]
[BlackElo "2564"]
[Annotator "TA"]
[PlyCount "61"]
[EventDate "2022.12.03"]
[EventType "tourn"]
[EventCountry "HUN"]
[SourceTitle "playchess.com"]
[Source "ChessBase"]
[SourceQuality "1"]
[TimeControl "40/5400+30:1800+30"]

{[%evp 23,61,-3,0,-8,-8,-42,-35,-61,-44,-64,-42,-60,-59,-66,-43,-64,-63,-109,-98,-129,-39,-18,-15,-41,-22,-24,-17,-11,-12,-17,12,0,14,40,14,18,34,0,13,0]} 1. Nf3 {[%emt 0:00:37]} Nf6 {[%emt 0:00:46]} 2. c4 {[%emt 0:00:20]} e6 {[%emt 0:00:16]} 3. Nc3 {[%emt 0:00:42]} d5 {[%emt 0:00:21]} 4. e3 {[%emt 0:00:32]} Bd6 {[%emt 0:02:13]} 5. d4 {[%emt 0:04:48]} b6 {[%emt 0:00:51]} 6. Bd3 {[%emt 0:02:04]} Bb7 {[%emt 0:01:20]} 7. O-O {[%emt 0:02:42]} O-O {[%emt 0:01:18]} 8. b3 {[%emt 0:01:05]} Nbd7 {[%emt 0:01:10]} 9. cxd5 {[%emt 0:04:27]} exd5 {[%emt 0:00:54]} 10. Bb2 {[%emt 0:00:18]} a6 {[%emt 0:02:22]} 11. Rc1 {[%emt 0:00:26]} Ne4 {[%emt 0:05:22]} 12. Ne2 {[%emt 0:00:39]} Qe7 {[%emt 0:07:14]} 13. Ng3 {[%emt 0:01:27] E14: Queen's Indian: Classical Variation (4 e3).} f5 {[%emt 0:02:37]} 14. Qc2 {[%emt 0:01:42][%cal Of3e5]} c6 {[%emt 0:06:46]} 15. Qe2 {[%emt 0:00:39] Black is slightly better.} a5 {[%emt 0:01:15]} 16. a4 {[%emt 0:03:10]} Rae8 {[%emt 0:08:21] [#]} 17. Rc2 $146 {[%emt 0:04:04]} ({Predecessor:} 17. Rfe1 Qe6 18. Qc2 Qh6 19. Nf1 f4 20. exf4 Bxf4 21. Rcd1 c5 22. Ng3 Ndf6 23. dxc5 {0-1 (29) Pacic,A-Apsner,J (1929) ICCF email 2005}) 17... Qf6 {[%emt 0:09:30]} 18. Nd2 {[%emt 0:16:07]} Qh4 {[%emt 0:07:57]} 19. Re1 {[%emt 0:08:11]} Re6 {[%emt 0:09:12]} 20. f4 {[%emt 0:05:19]} (20. Ngf1 $15) 20... Bb4 {[%emt 0:12:04]} (20... Nxg3 {seems wilder.} 21. Qf2 Rfe8 22. Nf3 Qh5) 21. Ngf1 {[%emt 0:05:16]} Nxd2 {[%emt 0:02:27]} (21... Qe7 $17 22. g4 g6 23. Bxe4 fxe4) 22. Nxd2 $15 {[%emt 0:00:19]} Rfe8 {[%emt 0:02:50] Black wants to play ...Rxe3.} ({Don't play} 22... Rh6 23. Nf3 Qh5 24. Bc3 $11) 23. Qf2 {[%emt 0:01:22]} (23. Bxf5 {looks sharper.} Rxe3 24. Qxe3 Rxe3 25. Rxe3 Qxf4 26. Rf3) 23... Qxf2+ {[%emt 0:01:50]} (23... Qf6 {simplifies} 24. Re2 Bxd2 25. Rcxd2 Qg6) 24. Kxf2 {[%emt 0:00:11]} g6 {[%emt 0:00:19]} 25. Bc3 {[%emt 0:00:34]} Nf6 {[%emt 0:00:35][%cal Oe6e3] [#] Hoping for ...Rxe3!} 26. h3 {[%emt 0:00:41][%cal Bh2h3,Bh3h4][%mdl 32]} Bd6 {[%emt 0:02:01][%cal Od6f4] And now ...Bxf4! would win.} (26... c5 $5 {[%cal Rb4c3]} 27. Re2 Rc8 28. dxc5 bxc5 29. Bxf6 Rxf6 $11) 27. g3 {[%emt 0:01:23]} Ne4+ {[%emt 0:01:01]} 28. Nxe4 {[%emt 0:00:19]} fxe4 {[%emt 0:00:04]} (28... dxe4 $2 29. Bc4 $18) 29. Be2 {[%emt 0:00:10]} Ra8 {[%emt 0:01:51]} 30. h4 {[%emt 0:00:56]} Be7 {[%emt 0:01:35]} 31. Kg2 {[%emt 0:01:47] Weighted Error Value: White=0.18 (very precise) /Black=0.16 (very precise)} 1/2-1/2

[Event "Hungarian Championship Men 2022"]
[Site "Budapest"]
[Date "2022.12.06"]
[Round "2.5"]
[White "Berkes, Ferenc"]
[Black "Fodor, Tamas Jr."]
[Result "1/2-1/2"]
[ECO "D43"]
[WhiteElo "2643"]
[BlackElo "2517"]
[Annotator "TA"]
[PlyCount "57"]
[EventDate "2022.12.03"]
[EventType "tourn"]
[EventCountry "HUN"]
[SourceTitle "playchess.com"]
[Source "ChessBase"]
[SourceQuality "1"]
[TimeControl "40/5400+30:1800+30"]

{[%evp 10,57,2,0,0,0,8,10,10,11,11,0,0,-5,0,0,0,0,0,0,0,-7,0,0,0,0,0,0,0,0,14,-3,0,0,0,-10,-4,-11,-6,-33,-22,-17,-21,-30,0,0,0,-35,0,0]} 1. d4 {[%emt 0:00:33]} d5 {[%emt 0:01:04]} 2. c4 {[%emt 0:00:16]} c6 {[%emt 0:01:27]} 3. Nf3 {[%emt 0:00:13]} Nf6 {[%emt 0:00:19]} 4. Nc3 {[%emt 0:00:17]} e6 {[%emt 0:00:38]} 5. cxd5 {[%emt 0:00:27]} exd5 {[%emt 0:00:14]} 6. Qc2 {[%emt 0:00:11]} Be7 {[%emt 0:03:57] D35: Queen's Gambit Declined: Exchange Variation.} 7. h3 {[%emt 0:02:32]} O-O {[%emt 0:04:06]} 8. Bf4 {[%emt 0:00:17]} g6 {[%emt 0:03:28]} 9. e3 {[%emt 0:05:26]} Bf5 {[%emt 0:00:22]} 10. Bd3 {[%emt 0:00:57]} Bxd3 {[%emt 0:00:15]} 11. Qxd3 {[%emt 0:00:07]} Bd6 {[%emt 0:02:48]} 12. O-O {[%emt 0:04:03]} Re8 {[%emt 0:02:33] [#]} 13. Ne5 $146 {[%emt 0:08:03]} ({Predecessor:} 13. Bxd6 Qxd6 14. Ne5 Nbd7 15. f4 Ne4 16. Nxe4 dxe4 17. Qb3 Nxe5 18. fxe5 Qd5 19. Qc2 {1-0 (33) Castellet Menchon,C (1767)-Lozano Diaz,A (1916) Cerdanyola del Valles 2012}) 13... Qe7 {[%emt 0:06:29]} 14. Rab1 {[%emt 0:33:53]} a5 {[%emt 0:07:21]} 15. Rfc1 {[%emt 0:04:16]} Nbd7 {[%emt 0:05:19]} 16. Nxd7 {[%emt 0:00:54]} Qxd7 {[%emt 0:00:07]} 17. Bxd6 {[%emt 0:00:07]} Qxd6 {[%emt 0:00:06]} 18. Na4 {[%emt 0:02:33]} h5 {[%emt 0:03:08]} 19. Rc2 {[%emt 0:03:55]} Kg7 {[%emt 0:07:08]} 20. Qa3 {[%emt 0:00:25]} Ne4 {[%emt 0:08:52]} 21. Nc5 {[%emt 0:01:05]} (21. Qxd6 {simplifies} Nxd6 22. h4 f6 23. g3) 21... Qe7 {[%emt 0:04:58]} 22. Nxe4 {[%emt 0:00:44]} Qxe4 {[%emt 0:00:06]} 23. Rbc1 {[%emt 0:00:15]} g5 {[%emt 0:00:39]} 24. Qd6 {[%emt 0:00:32]} Re6 {[%emt 0:00:47]} 25. Qc7 {[%emt 0:00:18]} Re7 {[%emt 0:01:12]} 26. Qd6 {[%emt 0:00:13]} Re6 {[%emt 0:01:02]} 27. Qc7 {[%emt 0:00:05]} Re7 {[%emt 0:00:15]} 28. Qd6 {[%emt 0:00:06]} Re6 {[%emt 0:00:09]} 29. Qc7 {[%emt 0:00:08] A balanced but interesting game.   Weighted Error Value: White=0.04 (flawless) /Black=0.07 (flawless)} 1/2-1/2